[Event "*** Titled Tuesday Blitz"]
[Site "Chess.com"]
[Date "2019.06.04"]
[Round "2"]
[White "Alliswell998"]
[Black "catalin009"]
[Result "0-1"]
[WhiteElo "2416"]
[BlackElo "2489"]
[TimeControl "180+2"]
[EndTime "13:25:13 PDT"]
[Termination "catalin009 won by checkmate"]

1. e4 {[%clk 0:02:05]} 1... e5 {[%clk 0:02:53.8]} 2. Nf3 {[%clk 0:02:05.7]} 2...
Nc6 {[%clk 0:02:51.3]} 3. Bc4 {[%clk 0:02:03]} 3... Bc5 {[%clk 0:02:51.3]} 4. c3
{[%clk 0:02:02.3]} 4... Nf6 {[%clk 0:02:51.1]} 5. d3 {[%clk 0:02:02.4]} 5... a6
{[%clk 0:02:50.2]} 6. Bb3 {[%clk 0:02:03.8]} 6... Ba7 {[%clk 0:02:50.4]} 7. h3
{[%clk 0:02:05.4]} 7... d6 {[%clk 0:02:50.2]} 8. Nbd2 {[%clk 0:02:06.5]} 8...
O-O {[%clk 0:02:47.4]} 9. Nf1 {[%clk 0:02:07]} 9... d5 {[%clk 0:02:39.2]} 10.
Qe2 {[%clk 0:02:06.4]} 10... dxe4 {[%clk 0:02:23.1]} 11. dxe4 {[%clk 0:02:08.3]}
11... Na5 {[%clk 0:02:24.6]} 12. Bc2 {[%clk 0:02:03.6]} 12... Be6 {[%clk
0:02:25.9]} 13. b3 {[%clk 0:02:02.9]} 13... Qe7 {[%clk 0:02:18.9]} 14. Ng3
{[%clk 0:01:57.9]} 14... Nc6 {[%clk 0:02:16.4]} 15. Bg5 {[%clk 0:01:54.4]} 15...
h6 {[%clk 0:02:17]} 16. Bh4 {[%clk 0:01:54.7]} 16... Qc5 {[%clk 0:01:45]} 17.
O-O {[%clk 0:01:48.4]} 17... Nh7 {[%clk 0:01:40.7]} 18. Nf5 {[%clk 0:01:32.7]}
18... Rfe8 {[%clk 0:01:31.2]} 19. Rad1 {[%clk 0:01:27.9]} 19... Qxc3 {[%clk
0:01:29.5]} 20. Nh2 {[%clk 0:01:12.5]} 20... Bxf5 {[%clk 0:01:28.2]} 21. exf5
{[%clk 0:01:14.4]} 21... Nd4 {[%clk 0:01:29.2]} 22. Qh5 {[%clk 0:00:38.4]} 22...
Qxc2 {[%clk 0:01:29.9]} 23. f6 {[%clk 0:00:38.7]} 23... Qg6 {[%clk 0:01:22.4]}
24. Qxg6 {[%clk 0:00:35.8]} 24... fxg6 {[%clk 0:01:23.7]} 25. Ng4 {[%clk
0:00:31]} 25... Nf5 {[%clk 0:01:20.5]} 26. Rd7 {[%clk 0:00:27.5]} 26... Rf8
{[%clk 0:00:45.9]} 27. fxg7 {[%clk 0:00:20.5]} 27... Rf7 {[%clk 0:00:46.6]} 28.
Rxf7 {[%clk 0:00:16.6]} 28... Kxf7 {[%clk 0:00:47.6]} 29. Nxe5+ {[%clk
0:00:17.7]} 29... Kxg7 {[%clk 0:00:48.5]} 30. Bg3 {[%clk 0:00:17.4]} 30... Nxg3
{[%clk 0:00:49.1]} 31. Rd1 {[%clk 0:00:17.5]} 31... Nf6 {[%clk 0:00:47.7]} 32.
Kh2 {[%clk 0:00:17.6]} 32... Nf5 {[%clk 0:00:48.3]} 33. g4 {[%clk 0:00:17.9]}
33... Nd6 {[%clk 0:00:49.1]} 34. f4 {[%clk 0:00:17.3]} 34... Nfe4 {[%clk
0:00:48.7]} 35. a4 {[%clk 0:00:15]} 35... Rf8 {[%clk 0:00:48.9]} 36. Rf1 {[%clk
0:00:13]} 36... Be3 {[%clk 0:00:47.8]} 37. Nd3 {[%clk 0:00:13]} 37... Nd2 {[%clk
0:00:44.8]} 38. Re1 {[%clk 0:00:12.4]} 38... Bxf4+ {[%clk 0:00:45]} 39. Kg2
{[%clk 0:00:13.7]} 39... N2e4 {[%clk 0:00:45]} 40. b4 {[%clk 0:00:14]} 40... Bd2
{[%clk 0:00:43.6]} 41. Re2 {[%clk 0:00:14.8]} 41... b5 {[%clk 0:00:40.3]} 42.
axb5 {[%clk 0:00:15.4]} 42... axb5 {[%clk 0:00:42.2]} 43. h4 {[%clk 0:00:16.7]}
43... Bc3 {[%clk 0:00:42.3]} 44. h5 {[%clk 0:00:17.3]} 44... g5 {[%clk
0:00:39.2]} 45. Rc2 {[%clk 0:00:15.9]} 45... Ra8 {[%clk 0:00:37.9]} 46. Nc5
{[%clk 0:00:16.9]} 46... Ra3 {[%clk 0:00:34.7]} 47. Ne6+ {[%clk 0:00:15.7]}
47... Kf6 {[%clk 0:00:35.2]} 48. Nxc7 {[%clk 0:00:17.6]} 48... Ke5 {[%clk
0:00:33.3]} 49. Rc1 {[%clk 0:00:13.1]} 49... Nc4 {[%clk 0:00:33.4]} 50. Nxb5
{[%clk 0:00:13.4]} 50... Ra2+ {[%clk 0:00:30.7]} 51. Kh3 {[%clk 0:00:14.8]}
51... Nf2+ {[%clk 0:00:09.8]} 52. Kg3 {[%clk 0:00:14.6]} 52... Ne4+ {[%clk
0:00:10.8]} 53. Kh3 {[%clk 0:00:16]} 53... Ncd2 {[%clk 0:00:12.1]} 54. Nxc3
{[%clk 0:00:16.2]} 54... Ra3 {[%clk 0:00:13.1]} 55. Kh2 {[%clk 0:00:14.3]} 55...
Rxc3 {[%clk 0:00:14.3]} 56. Ra1 {[%clk 0:00:15.6]} 56... Nf3+ {[%clk 0:00:15.7]}
57. Kg2 {[%clk 0:00:16.7]} 57... Kf4 {[%clk 0:00:16.8]} 58. Ra6 {[%clk
0:00:16.4]} 58... Rc2+ {[%clk 0:00:18]} 59. Kh1 {[%clk 0:00:15.3]} 59... Rh2#
{[%clk 0:00:19]} 0-1

[Event "*** Titled Tuesday Blitz"]
[Site "Chess.com"]
[Date "2019.06.04"]
[Round "2"]
[White "annakantane"]
[Black "DavidStevanic"]
[Result "1-0"]
[WhiteElo "2229"]
[BlackElo "2179"]
[TimeControl "180+2"]
[EndTime "13:25:21 PDT"]
[Termination "annakantane won by resignation"]

1. e4 {[%clk 0:03:01.9]} 1... e5 {[%clk 0:02:59.5]} 2. Nf3 {[%clk 0:03:02.7]}
2... Nc6 {[%clk 0:03:00.6]} 3. Bb5 {[%clk 0:03:02.1]} 3... a6 {[%clk 0:03:01.4]}
4. Ba4 {[%clk 0:03:02.8]} 4... Nf6 {[%clk 0:03:01.4]} 5. Bxc6 {[%clk 0:03:00.4]}
5... dxc6 {[%clk 0:02:59.9]} 6. d3 {[%clk 0:03:01.9]} 6... Bg4 {[%clk
0:02:57.9]} 7. h3 {[%clk 0:03:00]} 7... Bh5 {[%clk 0:02:58.8]} 8. Nbd2 {[%clk
0:02:54]} 8... Bd6 {[%clk 0:02:56.7]} 9. Nc4 {[%clk 0:02:51]} 9... Nd7 {[%clk
0:02:57.1]} 10. Ne3 {[%clk 0:02:42.5]} 10... Bg6 {[%clk 0:02:38.5]} 11. g4
{[%clk 0:01:52.9]} 11... h5 {[%clk 0:02:24.2]} 12. Rg1 {[%clk 0:01:51.7]} 12...
hxg4 {[%clk 0:02:23.5]} 13. hxg4 {[%clk 0:01:53]} 13... Qe7 {[%clk 0:02:12.7]}
14. Nf5 {[%clk 0:01:52.9]} 14... Bxf5 {[%clk 0:02:13.6]} 15. gxf5 {[%clk
0:01:54.4]} 15... O-O-O {[%clk 0:02:07]} 16. Bd2 {[%clk 0:01:45]} 16... g6
{[%clk 0:01:47.6]} 17. fxg6 {[%clk 0:01:36.9]} 17... fxg6 {[%clk 0:01:48.5]} 18.
Bg5 {[%clk 0:01:37.9]} 18... Nf6 {[%clk 0:01:49.4]} 19. Qe2 {[%clk 0:01:36.6]}
19... Qf7 {[%clk 0:01:45.9]} 20. O-O-O {[%clk 0:01:34.5]} 20... Rdf8 {[%clk
0:01:07.9]} 21. Qd2 {[%clk 0:01:32.5]} 21... Qxa2 {[%clk 0:00:56.3]} 22. Qe3
{[%clk 0:01:30.8]} 22... Qa1+ {[%clk 0:00:42.7]} 23. Kd2 {[%clk 0:01:31.9]}
23... Qxb2 {[%clk 0:00:35.7]} 24. Ke2 {[%clk 0:00:59.9]} 24... Nh5 {[%clk
0:00:24.4]} 25. Kf1 {[%clk 0:00:44.7]} 25... Qxc2 {[%clk 0:00:18.8]} 26. Rd2
{[%clk 0:00:44.3]} 26... Qb1+ {[%clk 0:00:17.9]} 27. Kg2 {[%clk 0:00:45.5]}
27... Qb3 {[%clk 0:00:16.1]} 28. Nh4 {[%clk 0:00:40.3]} 28... Nf4+ {[%clk
0:00:14.1]} 29. Kg3 {[%clk 0:00:40.8]} 29... Qf7 {[%clk 0:00:13.1]} 30. Rb2
{[%clk 0:00:35.1]} 30... Rh5 {[%clk 0:00:12.1]} 31. Nf3 {[%clk 0:00:28.4]} 31...
Ne6 {[%clk 0:00:10.2]} 32. Bh4 {[%clk 0:00:22.8]} 32... Qf4+ {[%clk 0:00:09.3]}
33. Qxf4 {[%clk 0:00:20.8]} 33... exf4+ {[%clk 0:00:10.4]} 34. Kg4 {[%clk
0:00:20.4]} 34... Nc5 {[%clk 0:00:08.5]} 35. Rd1 {[%clk 0:00:18.2]} 35... Be5
{[%clk 0:00:07.7]} 36. d4 {[%clk 0:00:18.2]} 36... Bg7 {[%clk 0:00:07.6]} 37.
Re2 {[%clk 0:00:14.2]} 37... Nd7 {[%clk 0:00:07.1]} 38. e5 {[%clk 0:00:14.6]}
38... c5 {[%clk 0:00:07.4]} 39. e6 {[%clk 0:00:14.8]} 39... Nf6+ {[%clk
0:00:08.3]} 40. Bxf6 {[%clk 0:00:12.7]} 40... Bxf6 {[%clk 0:00:09.2]} 41. d5
{[%clk 0:00:12.8]} 41... Be7 {[%clk 0:00:07.4]} 42. Ne5 {[%clk 0:00:10.6]} 42...
Rg5+ {[%clk 0:00:07.5]} 43. Kf3 {[%clk 0:00:12]} 43... Rd8 {[%clk 0:00:05.4]}
44. Nf7 {[%clk 0:00:13.1]} 44... Rdxd5 {[%clk 0:00:04.9]} 45. Rh1 {[%clk
0:00:09.9]} 45... Rgf5 {[%clk 0:00:03.8]} 46. Rh8+ {[%clk 0:00:10.1]} 46... Rd8
{[%clk 0:00:04.8]} 47. Nxd8 {[%clk 0:00:09.9]} 47... c6 {[%clk 0:00:03.2]} 48.
Nxc6+ {[%clk 0:00:08.9]} 48... Kc7 {[%clk 0:00:04.6]} 49. Nxe7 {[%clk
0:00:10.4]} 49... Rg5 {[%clk 0:00:04.6]} 50. Ng8 {[%clk 0:00:10.5]} 50... Rd5
{[%clk 0:00:04.7]} 51. e7 {[%clk 0:00:11.8]} 51... Rd3+ {[%clk 0:00:06.2]} 52.
Kxf4 {[%clk 0:00:12.2]} 52... Rd4+ {[%clk 0:00:07.2]} 53. Kg5 {[%clk 0:00:13.5]}
53... Rd5+ {[%clk 0:00:08.6]} 54. Kxg6 {[%clk 0:00:14.9]} 54... Rd6+ {[%clk
0:00:10.1]} 55. Kf7 {[%clk 0:00:16.3]} 55... Rd7 {[%clk 0:00:11.3]} 56. Nf6
{[%clk 0:00:16.6]} 56... Rxe7+ {[%clk 0:00:11.8]} 57. Rxe7+ {[%clk 0:00:18.5]}
57... Kb6 {[%clk 0:00:13.4]} 58. Rb8 {[%clk 0:00:17]} 58... c4 {[%clk
0:00:15.3]} 59. Rbxb7+ {[%clk 0:00:18.5]} 1-0

[Event "*** Titled Tuesday Blitz"]
[Site "Chess.com"]
[Date "2019.06.04"]
[Round "2"]
[White "temus_galaktionov"]
[Black "Chebure"]
[Result "1-0"]
[WhiteElo "2690"]
[BlackElo "2809"]
[TimeControl "180+2"]
[EndTime "13:25:22 PDT"]
[Termination "temus_galaktionov won by resignation"]

1. d4 {[%clk 0:03:01.3]} 1... Nf6 {[%clk 0:03:01]} 2. Nf3 {[%clk 0:03:02.4]}
2... d6 {[%clk 0:03:02.1]} 3. c4 {[%clk 0:03:03.6]} 3... g6 {[%clk 0:03:03]} 4.
Nc3 {[%clk 0:03:04.2]} 4... Bf5 {[%clk 0:03:04.4]} 5. Qb3 {[%clk 0:03:01.2]}
5... Qc8 {[%clk 0:03:03.9]} 6. g3 {[%clk 0:03:01.8]} 6... Nc6 {[%clk 0:03:03.5]}
7. Bg2 {[%clk 0:03:01.1]} 7... a5 {[%clk 0:03:04.2]} 8. a3 {[%clk 0:03:00.5]}
8... Bg7 {[%clk 0:02:52]} 9. O-O {[%clk 0:03:01.3]} 9... a4 {[%clk 0:02:48.8]}
10. Nxa4 {[%clk 0:02:53.4]} 10... Na5 {[%clk 0:02:49.1]} 11. Qb4 {[%clk
0:02:53.4]} 11... Bc2 {[%clk 0:02:48.5]} 12. Ne1 {[%clk 0:02:48.3]} 12... Bd1
{[%clk 0:02:40.1]} 13. Nc3 {[%clk 0:02:45.9]} 13... Bb3 {[%clk 0:02:35.6]} 14.
Bf4 {[%clk 0:02:37.2]} 14... O-O {[%clk 0:02:30.7]} 15. c5 {[%clk 0:02:35.4]}
15... Be6 {[%clk 0:02:26.8]} 16. d5 {[%clk 0:02:31.4]} 16... Bh3 {[%clk
0:02:27.5]} 17. cxd6 {[%clk 0:02:29.3]} 17... exd6 {[%clk 0:02:23.9]} 18. Nd3
{[%clk 0:02:24.5]} 18... Bxg2 {[%clk 0:02:23.2]} 19. Kxg2 {[%clk 0:02:25.1]}
19... Re8 {[%clk 0:02:24.6]} 20. Rfe1 {[%clk 0:02:25.2]} 20... c5 {[%clk
0:01:53.9]} 21. Qb5 {[%clk 0:02:21.2]} 21... Ra6 {[%clk 0:01:26]} 22. Rac1
{[%clk 0:01:55.8]} 22... Ne4 {[%clk 0:01:18.6]} 23. Nxe4 {[%clk 0:01:47.2]}
23... Rxe4 {[%clk 0:01:20.5]} 24. Bxd6 {[%clk 0:01:36.2]} 24... Rxd6 {[%clk
0:01:15]} 25. Rxc5 {[%clk 0:01:36.4]} 25... Qb8 {[%clk 0:00:52.9]} 26. Qxa5
{[%clk 0:01:31.9]} 26... b6 {[%clk 0:00:53.4]} 27. Qb5 {[%clk 0:01:28.2]} 27...
Rd4 {[%clk 0:00:49.5]} 28. Rec1 {[%clk 0:01:23]} 28... Rd8 {[%clk 0:00:36.3]}
29. Rc6 {[%clk 0:01:23.9]} 29... R4xd5 {[%clk 0:00:30.6]} 30. Qxb6 {[%clk
0:01:25]} 30... Qa8 {[%clk 0:00:31.6]} 31. f3 {[%clk 0:01:21.2]} 31... Re8
{[%clk 0:00:31]} 32. R1c2 {[%clk 0:01:21.1]} 32... g5 {[%clk 0:00:27.1]} 33. Qa6
{[%clk 0:01:12.2]} 33... Qd8 {[%clk 0:00:07.6]} 34. Rc8 {[%clk 0:01:10.4]} 34...
Qe7 {[%clk 0:00:04.9]} 35. Rxe8+ {[%clk 0:01:10]} 35... Qxe8 {[%clk 0:00:06.8]}
36. Rc8 {[%clk 0:01:08.1]} 36... Rd8 {[%clk 0:00:08]} 37. Rxd8 {[%clk
0:01:08.7]} 37... Qxd8 {[%clk 0:00:09.9]} 38. Qc4 {[%clk 0:01:07.4]} 38... h5
{[%clk 0:00:06.7]} 39. b4 {[%clk 0:01:01.6]} 39... Qe7 {[%clk 0:00:04]} 40. Kf2
{[%clk 0:01:01.9]} 40... Qa7+ {[%clk 0:00:03]} 41. Kg2 {[%clk 0:00:52.6]} 41...
Qxa3 {[%clk 0:00:03.8]} 42. Qc8+ {[%clk 0:00:52.8]} 42... Bf8 {[%clk 0:00:05.1]}
43. Qf5 {[%clk 0:00:50.9]} 43... Be7 {[%clk 0:00:05]} 44. Qe5 {[%clk 0:00:49.5]}
44... Qa7 {[%clk 0:00:03.5]} 45. b5 {[%clk 0:00:50.4]} 45... Qb7 {[%clk
0:00:04.6]} 46. h3 {[%clk 0:00:47.4]} 46... Qd7 {[%clk 0:00:02.9]} 47. g4 {[%clk
0:00:47.2]} 47... hxg4 {[%clk 0:00:03.6]} 48. hxg4 {[%clk 0:00:48.2]} 48... Bd8
{[%clk 0:00:03.4]} 49. Qf5 {[%clk 0:00:45]} 49... Qe8 {[%clk 0:00:02.6]} 50. Kf1
{[%clk 0:00:43.6]} 50... Kg7 {[%clk 0:00:02.9]} 51. Qe5+ {[%clk 0:00:44.3]}
51... Qxe5 {[%clk 0:00:03.5]} 52. Nxe5 {[%clk 0:00:45.3]} 52... Kf6 {[%clk
0:00:04.9]} 53. Nc4 {[%clk 0:00:43.6]} 53... Ke6 {[%clk 0:00:05.1]} 54. e4
{[%clk 0:00:44.5]} 54... Bc7 {[%clk 0:00:03.4]} 55. Ke2 {[%clk 0:00:45.4]} 55...
Bb8 {[%clk 0:00:02.4]} 56. Kd3 {[%clk 0:00:46.2]} 56... Bc7 {[%clk 0:00:03.9]}
57. Kd4 {[%clk 0:00:47]} 57... Bb8 {[%clk 0:00:04.8]} 58. Kc5 {[%clk 0:00:47.9]}
58... Kd7 {[%clk 0:00:06.1]} 59. Kd5 {[%clk 0:00:48.4]} 59... Bc7 {[%clk
0:00:06.5]} 60. Ne5+ {[%clk 0:00:46.9]} 60... Ke7 {[%clk 0:00:06.9]} 61. Nc4
{[%clk 0:00:47.7]} 61... Kd7 {[%clk 0:00:07.1]} 62. b6 {[%clk 0:00:48.6]} 62...
Bb8 {[%clk 0:00:08.2]} 63. Ne5+ {[%clk 0:00:49]} 63... Ke7 {[%clk 0:00:09.1]}
64. Nc6+ {[%clk 0:00:49.8]} 1-0

[Event "*** Titled Tuesday Blitz"]
[Site "Chess.com"]
[Date "2019.06.04"]
[Round "2"]
[White "Lagravesamuell"]
[Black "Tjktiger"]
[Result "1-0"]
[WhiteElo "2585"]
[BlackElo "2719"]
[TimeControl "180+2"]
[EndTime "13:25:26 PDT"]
[Termination "Lagravesamuell won by resignation"]

1. d4 {[%clk 0:03:01.1]} 1... d6 {[%clk 0:03:00.9]} 2. Nf3 {[%clk 0:03:01.3]}
2... g6 {[%clk 0:02:59.7]} 3. c4 {[%clk 0:03:01.9]} 3... Nf6 {[%clk 0:03:00.4]}
4. Nc3 {[%clk 0:03:03.1]} 4... Bf5 {[%clk 0:03:01.9]} 5. d5 {[%clk 0:03:02.6]}
5... Bg7 {[%clk 0:03:02.2]} 6. Nd4 {[%clk 0:03:03.5]} 6... Bd7 {[%clk
0:03:01.4]} 7. e4 {[%clk 0:03:04.2]} 7... c5 {[%clk 0:03:02.3]} 8. Nc2 {[%clk
0:03:02.7]} 8... O-O {[%clk 0:03:02.7]} 9. Be2 {[%clk 0:03:04.3]} 9... e5 {[%clk
0:03:03.5]} 10. O-O {[%clk 0:03:03.2]} 10... Na6 {[%clk 0:03:02.8]} 11. f4
{[%clk 0:02:58.3]} 11... exf4 {[%clk 0:03:02.7]} 12. Bxf4 {[%clk 0:02:59.9]}
12... Qe7 {[%clk 0:03:03.9]} 13. Bf3 {[%clk 0:02:52.2]} 13... Ne8 {[%clk
0:02:48.4]} 14. Re1 {[%clk 0:02:48.7]} 14... Be5 {[%clk 0:02:49.1]} 15. Qd2
{[%clk 0:02:48.1]} 15... Ng7 {[%clk 0:02:48.7]} 16. Bxe5 {[%clk 0:02:41.2]}
16... Qxe5 {[%clk 0:02:49.1]} 17. Ne3 {[%clk 0:02:42]} 17... Rae8 {[%clk
0:02:43.2]} 18. Bg4 {[%clk 0:02:42.5]} 18... Nb8 {[%clk 0:02:12.4]} 19. Bxd7
{[%clk 0:02:39.5]} 19... Nxd7 {[%clk 0:02:14.3]} 20. Ng4 {[%clk 0:02:41.1]}
20... Qh5 {[%clk 0:02:15.2]} 21. Qf4 {[%clk 0:02:38.3]} 21... f5 {[%clk
0:01:54.3]} 22. exf5 {[%clk 0:02:36]} 22... Nxf5 {[%clk 0:01:46.6]} 23. Rxe8
{[%clk 0:01:58.8]} 23... Rxe8 {[%clk 0:01:45.8]} 24. Ne4 {[%clk 0:02:00.3]}
24... Rf8 {[%clk 0:01:39.3]} 25. h3 {[%clk 0:01:57.9]} 25... Kh8 {[%clk
0:01:10.4]} 26. Nxd6 {[%clk 0:01:54.5]} 26... Nxd6 {[%clk 0:01:11.5]} 27. Qxd6
{[%clk 0:01:55.4]} 27... Qf5 {[%clk 0:01:13.1]} 28. Qe6 {[%clk 0:01:42.4]} 28...
h5 {[%clk 0:00:58.1]} 29. Qxf5 {[%clk 0:01:36.4]} 29... Rxf5 {[%clk 0:01:00]}
30. Ne3 {[%clk 0:01:35.1]} 30... Rf4 {[%clk 0:00:54.6]} 31. Re1 {[%clk
0:01:29.7]} 31... Kg8 {[%clk 0:00:45.8]} 32. b3 {[%clk 0:01:25.2]} 32... Rd4
{[%clk 0:00:45.9]} 33. Re2 {[%clk 0:01:22.8]} 33... Kf7 {[%clk 0:00:34.7]} 34.
Kf2 {[%clk 0:01:23.1]} 34... a5 {[%clk 0:00:24.2]} 35. Nc2 {[%clk 0:01:22.1]}
35... Rd1 {[%clk 0:00:24.4]} 36. Na3 {[%clk 0:01:22.1]} 36... Nf6 {[%clk
0:00:17.5]} 37. Nb5 {[%clk 0:01:22.6]} 37... b6 {[%clk 0:00:11]} 38. Nd6+ {[%clk
0:01:19.7]} 38... Kg7 {[%clk 0:00:06.1]} 39. Re7+ {[%clk 0:01:20.4]} 39... Kh6
{[%clk 0:00:07.2]} 40. Re6 {[%clk 0:01:21.6]} 40... Kg7 {[%clk 0:00:07.2]} 41.
Nc8 {[%clk 0:01:18.5]} 41... Rd2+ {[%clk 0:00:08]} 42. Re2 {[%clk 0:01:19.9]}
42... Ne4+ {[%clk 0:00:07.6]} 43. Ke3 {[%clk 0:01:21.3]} 43... Rxe2+ {[%clk
0:00:04.3]} 44. Kxe2 {[%clk 0:01:22.3]} 44... Nc3+ {[%clk 0:00:06.2]} 45. Kd2
{[%clk 0:00:49.3]} 45... Nxa2 {[%clk 0:00:07.2]} 46. Nxb6 {[%clk 0:00:43]} 46...
Nb4 {[%clk 0:00:08.6]} 47. Nd7 {[%clk 0:00:34.1]} 47... Na6 {[%clk 0:00:09.1]}
48. Ke3 {[%clk 0:00:35.4]} 48... Kf7 {[%clk 0:00:10]} 49. Ke4 {[%clk 0:00:35.7]}
49... Ke7 {[%clk 0:00:11.2]} 50. Ne5 {[%clk 0:00:37]} 50... Kf6 {[%clk
0:00:12.4]} 51. Nc6 {[%clk 0:00:36.5]} 51... Nc7 {[%clk 0:00:06.7]} 52. Nxa5
{[%clk 0:00:36.7]} 52... Ne8 {[%clk 0:00:05.3]} 53. Nb7 {[%clk 0:00:38]} 53...
Ke7 {[%clk 0:00:06.6]} 54. Nxc5 {[%clk 0:00:38.7]} 54... Kd6 {[%clk 0:00:08.1]}
55. Nd3 {[%clk 0:00:39.4]} 55... Nf6+ {[%clk 0:00:10]} 56. Kd4 {[%clk
0:00:41.1]} 1-0

[Event "*** Titled Tuesday Blitz"]
[Site "Chess.com"]
[Date "2019.06.04"]
[Round "2"]
[White "ellennilssen"]
[Black "Aragon"]
[Result "1-0"]
[WhiteElo "2028"]
[BlackElo "2058"]
[TimeControl "180+2"]
[EndTime "13:25:32 PDT"]
[Termination "ellennilssen won by resignation"]

1. d4 {[%clk 0:02:59.1]} 1... d5 {[%clk 0:03:00.4]} 2. c4 {[%clk 0:03:00.3]}
2... e6 {[%clk 0:03:01.6]} 3. Nc3 {[%clk 0:03:01.2]} 3... c6 {[%clk 0:03:03]} 4.
cxd5 {[%clk 0:03:02]} 4... exd5 {[%clk 0:03:03.4]} 5. Nf3 {[%clk 0:03:03.6]}
5... Nf6 {[%clk 0:03:03.5]} 6. Bg5 {[%clk 0:03:04.6]} 6... Be7 {[%clk
0:03:04.2]} 7. e3 {[%clk 0:03:05.9]} 7... Ne4 {[%clk 0:03:03.5]} 8. Bxe7 {[%clk
0:02:54.2]} 8... Qxe7 {[%clk 0:03:05.4]} 9. Qc2 {[%clk 0:02:53.6]} 9... O-O
{[%clk 0:03:00.8]} 10. Bd3 {[%clk 0:02:54.2]} 10... f5 {[%clk 0:03:02.1]} 11.
O-O-O {[%clk 0:02:51.3]} 11... b5 {[%clk 0:03:01.8]} 12. Ne5 {[%clk 0:02:49.8]}
12... b4 {[%clk 0:02:54.6]} 13. Na4 {[%clk 0:02:36.1]} 13... Bd7 {[%clk
0:02:49.7]} 14. f3 {[%clk 0:02:22.3]} 14... Nd6 {[%clk 0:02:50.4]} 15. Nc5
{[%clk 0:02:22.9]} 15... Be8 {[%clk 0:02:50.3]} 16. g4 {[%clk 0:02:22.7]} 16...
Nb7 {[%clk 0:02:32.3]} 17. Nxb7 {[%clk 0:02:07.4]} 17... Qxb7 {[%clk 0:02:32.4]}
18. Bxf5 {[%clk 0:02:08.9]} 18... g6 {[%clk 0:02:23.5]} 19. Bd3 {[%clk
0:02:00.3]} 19... Nd7 {[%clk 0:02:22.7]} 20. f4 {[%clk 0:01:46]} 20... Nxe5
{[%clk 0:02:15.1]} 21. fxe5 {[%clk 0:01:35.5]} 21... c5 {[%clk 0:02:16.4]} 22.
Kb1 {[%clk 0:01:29.9]} 22... c4 {[%clk 0:02:16.9]} 23. Be2 {[%clk 0:01:22.6]}
23... a5 {[%clk 0:02:17.5]} 24. h4 {[%clk 0:01:23.1]} 24... a4 {[%clk
0:02:17.6]} 25. Rdf1 {[%clk 0:01:14.1]} 25... b3 {[%clk 0:02:16]} 26. Qc3 {[%clk
0:01:09.4]} 26... Bf7 {[%clk 0:01:48.1]} 27. a3 {[%clk 0:01:08.8]} 27... Qd7
{[%clk 0:01:43.4]} 28. h5 {[%clk 0:01:07.7]} 28... Be6 {[%clk 0:01:37]} 29. hxg6
{[%clk 0:01:04.9]} 29... hxg6 {[%clk 0:01:36.2]} 30. e4 {[%clk 0:00:30]} 30...
Rxf1+ {[%clk 0:01:27]} 31. Rxf1 {[%clk 0:00:28.2]} 31... Bxg4 {[%clk 0:01:24.8]}
32. Bxg4 {[%clk 0:00:24.1]} 32... Qxg4 {[%clk 0:01:23.8]} 33. exd5 {[%clk
0:00:25.7]} 33... Qe4+ {[%clk 0:01:24]} 34. Ka1 {[%clk 0:00:23.7]} 34... Qxd5
{[%clk 0:01:24.6]} 35. Qg3 {[%clk 0:00:19]} 35... Qe4 {[%clk 0:01:20.2]} 36. Rg1
{[%clk 0:00:19.9]} 36... Ra6 {[%clk 0:01:18.9]} 37. Qg5 {[%clk 0:00:20.7]} 37...
Qxd4 {[%clk 0:01:11]} 38. Rf1 {[%clk 0:00:17.4]} 38... c3 {[%clk 0:01:04.2]} 39.
Qc1 {[%clk 0:00:16.4]} 39... cxb2+ {[%clk 0:00:57.3]} 40. Qxb2 {[%clk 0:00:17]}
40... Qd3 {[%clk 0:00:55.5]} 41. Rc1 {[%clk 0:00:16.8]} 41... Re6 {[%clk
0:00:53.4]} 42. Rc8+ {[%clk 0:00:17.3]} 42... Kg7 {[%clk 0:00:52.8]} 43. Rc7+
{[%clk 0:00:18.6]} 43... Kh6 {[%clk 0:00:48]} 44. Qh2+ {[%clk 0:00:19]} 44...
Kg5 {[%clk 0:00:48.9]} 45. Qg1+ {[%clk 0:00:18.7]} 45... Kf4 {[%clk 0:00:43.6]}
46. Rf7+ {[%clk 0:00:19.7]} 46... Ke4 {[%clk 0:00:38.1]} 47. Qe1+ {[%clk
0:00:19.7]} 47... Qe3 {[%clk 0:00:39.1]} 48. Qh1+ {[%clk 0:00:14.6]} 48... Kxe5
{[%clk 0:00:38.3]} 49. Qh2+ {[%clk 0:00:13.6]} 49... Ke4 {[%clk 0:00:38.1]} 50.
Qh1+ {[%clk 0:00:14.9]} 50... Kd4 {[%clk 0:00:34.7]} 51. Rd7+ {[%clk 0:00:16]}
51... Kc3 {[%clk 0:00:34.8]} 52. Rc7+ {[%clk 0:00:13.6]} 52... Kd2 {[%clk
0:00:30.1]} 53. Rd7+ {[%clk 0:00:14.3]} 53... Ke2 {[%clk 0:00:24.7]} 54. Qg2+
{[%clk 0:00:14.4]} 54... Qf2 {[%clk 0:00:21.4]} 55. Rd2+ {[%clk 0:00:14.9]}
55... Kxd2 {[%clk 0:00:22.7]} 56. Qxf2+ {[%clk 0:00:16.8]} 56... Re2 {[%clk
0:00:24]} 57. Qd4+ {[%clk 0:00:17.5]} 57... Kc2 {[%clk 0:00:24.5]} 58. Qc4+
{[%clk 0:00:17.3]} 58... Kd2 {[%clk 0:00:25.1]} 59. Qxa4 {[%clk 0:00:16.5]}
59... Re3 {[%clk 0:00:20.9]} 60. Qb4+ {[%clk 0:00:17]} 60... Kc2 {[%clk
0:00:21.5]} 61. Qc4+ {[%clk 0:00:17.9]} 61... Kd2 {[%clk 0:00:22]} 62. Kb2
{[%clk 0:00:18.2]} 62... g5 {[%clk 0:00:21.7]} 63. Qg4 {[%clk 0:00:18.4]} 63...
Re5 {[%clk 0:00:21.7]} 64. a4 {[%clk 0:00:19.2]} 1-0